[Event "1000GM BonaFIDE January 2024"]
[Site "Sunnyvale"]
[Date "2024.01.20"]
[Round "1.1"]
[White "Bheemaiah, Ayush"]
[Black "Walder, Michael"]
[Result "1-0"]
[ECO "B56"]
[WhiteElo "1639"]
[BlackElo "1826"]
[Annotator "NA RC"]
[PlyCount "73"]
[EventDate "2024.01.20"]
[EventType "swiss"]
[EventCountry "USA"]
[SourceTitle "playchess.com"]
[Source "ChessBase"]
[SourceQuality "1"]
[TimeControl "5400+30"]

1. e4 {[%emt 0:00:04]} c5 {[%emt 0:00:04]} 2. Nf3 {[%emt 0:00:09]} d6 {[%emt 0:00:06]} 3. d4 {[%emt 0:00:05]} cxd4 {[%emt 0:00:04]} 4. Nxd4 {[%emt 0:00:04]} Nf6 {[%emt 0:00:05]} 5. Nc3 {[%emt 0:00:10]} Nc6 {[%emt 0:00:31]} 6. Be3 {[%emt 0:01:09]} Ng4 {[%emt 0:00:11]} 7. Bb5 {[%emt 0:12:12]} Nxe3 {[%emt 0:08:42]} 8. Nxc6 {[%emt 0:01:36]} Nxd1 {[%emt 0:01:20]} 9. Nxd8+ {[%emt 0:00:59]} Kxd8 {[%emt 0:00:07]} 10. Rxd1 {[%emt 0:00:15]} a6 {[%emt 0:01:42]} 11. Bc4 {[%emt 0:08:36]} e6 {[%emt 0:00:08]} 12. a4 {[%emt 0:01:54]} Kc7 {[%emt 0:11:11]} 13. O-O {[%emt 0:05:02]} Bd7 {[%emt 0:04:58]} 14. f4 {[%emt 0:16:28]} Be7 {[%emt 0:04:11]} 15. Rfe1 {[%emt 0:03:19]} Rad8 {[%emt 0:06:07]} 16. b3 {[%emt 0:15:21]} Rhe8 {[%emt 0:02:07]} 17. Ne2 {[%emt 0:00:49]} Bc6 {[%emt 0:09:00]} 18. Nd4 {[%emt 0:03:14]} d5 {[%emt 0:17:36]} 19. Nxc6 {[%emt 0:01:31]} Kxc6 {[%emt 0:09:34]} 20. exd5+ {[%emt 0:00:19]} exd5 {[%emt 0:00:09]} 21. Bd3 {[%emt 0:02:22]} Bc5+ {[%emt 0:00:32]} 22. Kf1 {[%emt 0:03:44]} Bb4 {[%emt 0:01:51]} 23. Re2 {[%emt 0:00:31]} Rxe2 {[%emt 0:06:16]} 24. Bxe2 {[%emt 0:01:30]} Kc5 {[%emt 0:01:50]} 25. Bf3 {[%emt 0:02:31]} b6 {[%emt 0:00:58]} 26. Kf2 {[%emt 0:04:14]} f5 {[%emt 0:01:01]} 27. Rd3 {[%emt 0:01:43]} d4 {[%emt 0:00:40]} 28. Bb7 {[%emt 0:00:30]} a5 {[%emt 0:02:26]} 29. Rh3 {[%emt 0:02:25]} Rh8 {[%emt 0:02:14]} 30. Ba6 {[%emt 0:01:45]} Bd2 {[%emt 0:01:36]} 31. Kf3 {[%emt 0:01:41]} h5 {[%emt 0:02:14]} 32. Rg3 {[%emt 0:01:17]} Rh7 {[%emt 0:05:41]} 33. Bd3 {[%emt 0:01:06]} h4 {[%emt 0:00:42]} 34. Rg5 {[%emt 0:00:10]} h3 {[%emt 0:00:27]} 35. Bxf5 {[%emt 0:00:21]} Rh4 {[%emt 0:00:16]} 36. g3 {[%emt 0:02:10]} Rh8 {[%emt 0:01:03]} 37. Rxg7 {[%emt 0:00:16]} 1-0

[Event "1000GM BonaFIDE January 2024"]
[Site "Sunnyvale"]
[Date "2024.01.20"]
[Round "1.2"]
[White "Zhou, Ivan"]
[Black "Xiao, Michael"]
[Result "1-0"]
[ECO "C10"]
[WhiteElo "1727"]
[BlackElo "1553"]
[Annotator "NA RC"]
[PlyCount "113"]
[EventDate "2024.01.20"]
[EventType "swiss"]
[EventCountry "USA"]
[SourceTitle "playchess.com"]
[Source "ChessBase"]
[SourceQuality "1"]
[TimeControl "5400+30"]

1. e4 {[%emt 0:04:00]} e6 {[%emt 0:00:07]} 2. d4 {[%emt 0:00:08]} d5 {[%emt 0:00:06]} 3. Nd2 {[%emt 0:00:10]} dxe4 {[%emt 0:00:07]} 4. Nxe4 {[%emt 0:00:13]} Nd7 {[%emt 0:00:05]} 5. Nf3 {[%emt 0:00:35]} Ngf6 {[%emt 0:00:16]} 6. Nxf6+ {[%emt 0:00:42]} Nxf6 {[%emt 0:00:03]} 7. Bd3 {[%emt 0:00:47]} c5 {[%emt 0:00:24]} 8. O-O {[%emt 0:00:41]} Be7 {[%emt 0:01:31]} 9. dxc5 {[%emt 0:01:22]} Bxc5 {[%emt 0:00:16]} 10. Bg5 {[%emt 0:01:00]} O-O {[%emt 0:01:01]} 11. Qe2 {[%emt 0:02:29]} Qe7 {[%emt 0:02:48]} 12. Ne5 {[%emt 0:04:41]} Rd8 {[%emt 0:05:49]} 13. Ng4 {[%emt 0:01:26]} Rd5 {[%emt 0:09:37]} 14. Nxf6+ {[%emt 0:04:34]} gxf6 {[%emt 0:00:24]} 15. Bh6 {[%emt 0:00:12]} f5 {[%emt 0:03:44]} 16. Rfe1 {[%emt 0:10:28]} Qh4 {[%emt 1:12:12]} 17. Be3 {[%emt 0:02:20]} Bxe3 {[%emt 0:00:00]} 18. fxe3 {[%emt 0:05:15]} Bd7 {[%emt 0:00:00]} 19. e4 {[%emt 0:01:47]} Re5 {[%emt 0:00:00]} 20. Qf2 {[%emt 0:00:20]} Qxf2+ {[%emt 0:00:00]} 21. Kxf2 {[%emt 0:00:05]} fxe4 {[%emt 0:00:00]} 22. Bxe4 {[%emt 0:01:15]} Rc8 {[%emt 0:00:00]} 23. Bxh7+ {[%emt 0:00:14]} Kxh7 {[%emt 0:00:00]} 24. Rxe5 {[%emt 0:00:04]} Rxc2+ {[%emt 0:00:00]} 25. Re2 {[%emt 0:00:05]} Rxe2+ {[%emt 0:00:00]} 26. Kxe2 {[%emt 0:00:04]} Bc6 {[%emt 0:00:00]} 27. g3 {[%emt 0:00:05]} f5 {[%emt 0:00:00]} 28. Ke3 {[%emt 0:00:05]} a6 {[%emt 0:00:00]} 29. Rd1 {[%emt 0:00:06]} Bd5 {[%emt 0:00:00]} 30. Rxd5 {[%emt 0:00:39]} exd5 {[%emt 0:00:00]} 31. Kd4 {[%emt 0:00:04]} Kg6 {[%emt 0:00:00]} 32. Kxd5 {[%emt 0:00:06]} Kg5 {[%emt 0:00:00]} 33. Ke5 {[%emt 0:00:05]} Kg4 {[%emt 0:00:00]} 34. b4 {[%emt 0:00:10]} b6 {[%emt 0:00:00]} 35. a4 {[%emt 0:00:06]} b5 {[%emt 0:00:00]} 36. axb5 {[%emt 0:00:09]} axb5 {[%emt 0:00:00]} 37. Kf6 {[%emt 0:00:20]} f4 {[%emt 0:00:00]} 38. gxf4 {[%emt 0:00:07]} Kxf4 {[%emt 0:00:00]} 39. h4 {[%emt 0:00:03]} Kg4 {[%emt 0:00:00]} 40. Ke5 {[%emt 0:00:03]} Kxh4 {[%emt 0:00:00]} 41. Kd5 {[%emt 0:00:04]} Kg5 {[%emt 0:00:00]} 42. Kc6 {[%emt 0:00:04]} Kf6 {[%emt 0:00:00]} 43. Kxb5 {[%emt 0:00:04]} Ke7 {[%emt 0:00:00]} 44. Ka6 {[%emt 0:00:08]} Kd7 {[%emt 0:00:00]} 45. b5 {[%emt 0:00:05]} Kc8 {[%emt 0:00:00]} 46. Ka7 {[%emt 0:00:04]} Kc7 {[%emt 0:00:00]} 47. b6+ {[%emt 0:00:03]} Kc6 {[%emt 0:00:00]} 48. b7 {[%emt 0:00:05]} Kc5 {[%emt 0:00:00]} 49. b8=Q {[%emt 1:07:18]} Kc6 {[%emt 0:00:00]} 50. Qd8 {[%emt 0:00:00]} Kc5 {[%emt 0:00:00]} 51. Qd3 {[%emt 0:00:00]} Kb4 {[%emt 0:00:00]} 52. Kb6 {[%emt 0:00:00]} Ka4 {[%emt 0:00:00]} 53. Qb5+ {[%emt 0:00:00]} Ka3 {[%emt 0:00:00]} 54. Kc5 {[%emt 0:00:00]} Ka2 {[%emt 0:00:00]} 55. Kc4 {[%emt 0:00:00]} Ka1 {[%emt 0:00:00]} 56. Kc3 {[%emt 0:00:00]} Ka2 {[%emt 0:00:00]} 57. Qb3+ {[%emt 0:00:00]} 1-0

[Event "1000GM BonaFIDE January 2024"]
[Site "Sunnyvale"]
[Date "2024.01.21"]
[Round "2.1"]
[White "Nathan, Arjun"]
[Black "Bheemaiah, Ayush"]
[Result "1-0"]
[ECO "C88"]
[WhiteElo "1564"]
[BlackElo "1639"]
[Annotator "NA RC COMBH"]
[PlyCount "101"]
[EventDate "2024.01.20"]
[EventType "swiss"]
[EventCountry "USA"]
[SourceTitle "playchess.com"]
[Source "ChessBase"]
[SourceQuality "1"]
[TimeControl "5400+30"]

1. e4 {[%emt 1:31:00]} e5 {[%emt 1:31:00]} 2. Nf3 {[%emt 0:00:30]} Nc6 {[%emt 0:00:30]} 3. Bb5 {[%emt 0:00:30]} a6 {[%emt 0:00:30]} 4. Ba4 {[%emt 0:00:00]} Nf6 {[%emt 0:00:00]} 5. O-O {[%emt 0:00:00]} b5 {[%emt 0:00:00]} 6. Bb3 {[%emt 0:00:00]} Be7 {[%emt 0:00:00]} 7. Re1 {[%emt 0:00:00]} O-O {[%emt 0:00:00]} 8. a4 {[%emt 0:00:00]} Bb7 {[%emt 0:00:00]} 9. d3 {[%emt 0:00:00]} d6 {[%emt 0:00:00]} 10. Nbd2 {[%emt 0:00:00]} Na5 {[%emt 0:00:00]} 11. Ba2 {[%emt 0:00:00]} c5 {[%emt 0:00:00]} 12. Nf1 {[%emt 0:00:00]} h6 {[%emt 0:00:00]} 13. Ng3 {[%emt 0:00:00]} Re8 {[%emt 0:00:00]} 14. c3 {[%emt 0:00:00]} Bf8 {[%emt 0:00:00]} 15. h3 {[%emt 0:00:00]} Qc7 {[%emt 0:00:00]} 16. Nh4 {[%emt 0:00:00]} c4 {[%emt 0:00:00]} 17. Nh5 {[%emt 0:00:00]} Nxh5 {[%emt 0:00:00]} 18. Qxh5 {[%emt 0:00:00]} g6 {[%emt 0:00:00]} 19. Qg4 {[%emt 0:00:00]} Bc8 {[%emt 0:00:00]} 20. Qg3 {[%emt 0:00:00]} Bg7 {[%emt 0:00:00]} 21. Re3 {[%emt 0:00:00]} Be6 {[%emt 0:00:00]} 22. Rf3 {[%emt 0:00:00]} bxa4 {[%emt 0:00:00]} 23. Nf5 {[%emt 0:00:00]} gxf5 {[%emt 0:00:00]} 24. exf5 {[%emt 0:00:00]} Bxf5 {[%emt 0:00:00]} 25. Rxf5 {[%emt 0:00:00]} Re6 {[%emt 0:00:00]} 26. Qf3 {[%emt 0:00:00]} Rc8 {[%emt 0:06:10]} 27. dxc4 {[%emt 0:00:00]} e4 28. Qf4 {[%emt 0:00:00]} Nxc4 {[%emt 0:02:56]} 29. Bxc4 {[%emt 0:00:00]} Qxc4 {[%emt 0:00:01]} 30. Rxf7 {[%emt 0:00:00]} Rc5 {[%emt 0:01:57]} 31. Rd7 {[%emt 0:00:59]} Rf6 {[%emt 0:01:53]} 32. Qg4 {[%emt 0:02:35]} Rf7 {[%emt 0:00:13]} 33. Rxf7 {[%emt 0:01:06]} Kxf7 {[%emt 0:00:04]} 34. Be3 {[%emt 0:02:06]} Rc7 {[%emt 0:00:15]} 35. Rd1 {[%emt 0:00:37]} Qe6 {[%emt 0:00:22]} 36. Qf4+ {[%emt 0:00:44]} Ke7 {[%emt 0:00:01]} 37. Bb6 {[%emt 0:02:45]} Rd7 {[%emt 0:00:45]} 38. Re1 {[%emt 0:01:50]} d5 {[%emt 0:00:07]} 39. Bc5+ {[%emt 0:00:41]} Ke8 {[%emt 0:00:01]} 40. f3 {[%emt 0:00:55]} Qc6 {[%emt 0:00:44]} 41. Ba3 {[%emt 0:01:31]} Qb6+ {[%emt 0:00:47]} 42. Kh1 {[%emt 0:00:42]} Qf2 {[%emt 0:00:07]} 43. Qe3 {[%emt 0:01:22]} Qh4 {[%emt 0:01:04]} 44. fxe4 {[%emt 0:00:50]} d4 {[%emt 0:00:04]} 45. cxd4 {[%emt 0:01:30]} Bxd4 {[%emt 0:00:01]} 46. Qe2 {[%emt 0:00:26]} Rf7 {[%emt 0:01:54]} 47. Rc1 {[%emt 0:00:37]} Rf2 {[%emt 0:00:32]} 48. Qxa6 {[%emt 0:00:36]} Qf6 {[%emt 0:01:12]} 49. Rc8+ {[%emt 0:00:22]} Kd7 {[%emt 0:00:08]} 50. Qb7+ {[%emt 0:00:07]} Ke6 {[%emt 0:00:06]} 51. Qd5# {[%emt 0:00:38]} 1-0

[Event "1000GM BonaFIDE January 2024"]
[Site "Sunnyvale"]
[Date "2024.01.21"]
[Round "2.3"]
[White "Xiao, Michael"]
[Black "Xavier, Negron"]
[Result "1/2-1/2"]
[ECO "A14"]
[WhiteElo "1553"]
[BlackElo "1649"]
[Annotator "NA RC COMBH"]
[PlyCount "64"]
[EventDate "2024.01.20"]
[EventType "swiss"]
[EventCountry "USA"]
[SourceTitle "playchess.com"]
[Source "ChessBase"]
[SourceQuality "1"]
[TimeControl "5400+30"]

1. c4 {[%emt 0:06:34]} e6 {[%emt 0:00:08]} 2. g3 {[%emt 0:00:23]} d5 {[%emt 0:00:41]} 3. Bg2 {[%emt 0:00:08]} Nf6 {[%emt 0:00:09]} 4. Nf3 {[%emt 0:00:07]} Be7 {[%emt 0:00:24]} 5. O-O {[%emt 0:00:10]} O-O {[%emt 0:00:11]} 6. b3 {[%emt 0:01:19]} d4 {[%emt 0:02:36]} 7. e3 {[%emt 0:01:47]} c5 {[%emt 0:03:32]} 8. exd4 {[%emt 0:00:25]} cxd4 {[%emt 0:00:18]} 9. d3 {[%emt 0:00:04]} Nc6 {[%emt 0:00:40]} 10. a3 {[%emt 0:02:03]} a5 {[%emt 0:00:45]} 11. Re1 {[%emt 0:06:34]} h6 {[%emt 0:10:47]} 12. Bb2 {[%emt 0:02:48]} Bc5 {[%emt 0:05:44]} 13. Nbd2 {[%emt 0:01:41]} Re8 {[%emt 0:02:00]} 14. Ne5 {[%emt 0:11:49]} Nxe5 {[%emt 0:03:40]} 15. Rxe5 {[%emt 0:00:14]} Qc7 {[%emt 0:05:45]} 16. Re1 {[%emt 0:10:20]} e5 {[%emt 0:04:27]} 17. Ne4 {[%emt 0:03:29]} Nxe4 {[%emt 0:00:54]} 18. Rxe4 {[%emt 0:00:06]} Bd7 {[%emt 0:01:36]} 19. Qd2 {[%emt 0:02:54]} Bc6 {[%emt 0:24:36]} 20. Ree1 {[%emt 0:02:05]} Bxg2 {[%emt 0:00:12]} 21. Kxg2 {[%emt 0:00:08]} Qb6 {[%emt 0:00:40]} 22. Qc2 {[%emt 0:01:10]} Qc6+ {[%emt 0:00:32]} 23. Kg1 {[%emt 0:00:23]} Rad8 {[%emt 0:10:31]} 24. Rad1 {[%emt 0:01:37]} b5 {[%emt 0:03:23]} 25. Re2 {[%emt 0:08:06]} Qd6 {[%emt 0:08:01]} 26. Rde1 {[%emt 0:07:10]} bxc4 {[%emt 0:04:32]} 27. Qxc4 {[%emt 0:01:31]} Bxa3 {[%emt 0:05:50]} 28. Bxa3 {[%emt 0:00:07]} Qxa3 {[%emt 0:00:02]} 29. Rxe5 {[%emt 0:00:13]} Rxe5 {[%emt 0:00:25]} 30. Rxe5 {[%emt 0:00:05]} Qa1+ {[%emt 0:00:38]} 31. Kg2 {[%emt 0:00:12]} Qc3 {[%emt 0:00:35]} 32. Qb5 {[%emt 0:01:52]} Rc8 {[%emt 0:01:23]} 1/2-1/2

[Event "1000GM BonaFIDE January 2024"]
[Site "Sunnyvale"]
[Date "2024.01.21"]
[Round "2.4"]
[White "Tia, Rudy Jr."]
[Black "Rai, Achintya"]
[Result "0-1"]
[ECO "A01"]
[WhiteElo "1614"]
[BlackElo "1496"]
[Annotator "NA RC COMBH"]
[PlyCount "35"]
[EventDate "2024.01.20"]
[EventType "swiss"]
[EventCountry "USA"]
[SourceTitle "playchess.com"]
[Source "ChessBase"]
[SourceQuality "1"]
[TimeControl "5400+30"]

1. b3 Nf6 2. Bb2 g6 3. g3 Bg7 4. Bg2 O-O 5. d3 c5 6. e3 d5 7. Nd2 Nc6 8. Ne2 e5 9. h3 Qc7 10. a3 Be6 11. O-O Rad8 12. f4 c4 13. d4 exd4 14. Bxd4 Nxd4 15. Nxd4 c3 16. Nxe6 fxe6 17. Nf3 Ne4 18. Kh2 {[%emt 0:09:00]} 0-1

[Event "1000GM BonaFIDE January 2024"]
[Site "Sunnyvale"]
[Date "2024.01.21"]
[Round "2.5"]
[White "Wu, Andrew"]
[Black "Vale Cruz, Armin"]
[Result "0-1"]
[ECO "A17"]
[WhiteElo "1969"]
[BlackElo "1598"]
[Annotator "NA RC"]
[PlyCount "152"]
[EventDate "2024.01.20"]
[EventType "swiss"]
[EventCountry "USA"]
[SourceTitle "playchess.com"]
[Source "ChessBase"]
[SourceQuality "1"]
[TimeControl "5400+30"]

1. Nf3 {[%emt 0:00:01]} Nf6 {[%emt 0:00:17]} 2. c4 {[%emt 0:00:18]} e6 {[%emt 0:01:03]} 3. Nc3 {[%emt 0:00:33]} d5 {[%emt 0:00:07]} 4. e3 {[%emt 0:00:17]} a6 {[%emt 0:00:48]} 5. b3 {[%emt 0:00:47]} c5 {[%emt 0:02:43]} 6. d3 {[%emt 0:03:44]} Nc6 {[%emt 1:28:32]} 7. Bb2 $15 {[%emt 0:03:24]} d4 {[%emt 0:00:30]} 8. Ne4 {[%emt 0:00:30]} Be7 {[%emt 0:00:30]} 9. Nxf6+ {[%emt 0:00:30]} Bxf6 {[%emt 0:00:30]} 10. exd4 {[%emt 0:07:16]} Nxd4 {[%emt 0:07:57]} 11. Nxd4 {[%emt 0:00:30]} Bxd4 {[%emt 0:07:39]} 12. Qd2 b6 13. Be2 Bb7 14. Bxd4 Qxd4 {[%emt 0:00:00]} 15. O-O {[%emt 0:07:24]} h5 {[%emt 0:00:00]} 16. Qe3 {[%emt 0:00:30]} Rd8 {[%emt 0:00:00]} 17. Qxd4 {[%emt 0:00:30]} Rxd4 {[%emt 0:00:00]} 18. f4 {[%emt 0:00:30]} Ke7 {[%emt 0:00:00]} 19. Rad1 {[%emt 0:00:30]} h4 {[%emt 0:00:00]} 20. f5 {[%emt 0:00:30]} e5 {[%emt 0:00:00]} 21. h3 {[%emt 0:00:30]} Kf6 {[%emt 0:00:00]} 22. Rf2 {[%emt 0:52:22]} Rhd8 {[%emt 0:00:00]} 23. Rdf1 {[%emt 0:03:30]} Bc6 {[%emt 0:00:00]} 24. Kh2 {[%emt 0:02:33]} a5 {[%emt 0:00:00]} 25. a4 {[%emt 0:01:55]} e4 {[%emt 0:00:00]} 26. dxe4 {[%emt 0:00:08]} Bxe4 {[%emt 0:00:00]} 27. Bf3 {[%emt 0:05:54]} Bd3 {[%emt 0:00:00]} 28. Re1 {[%emt 0:00:18]} Rf4 {[%emt 0:00:00]} 29. Rd2 {[%emt 0:04:24]} Rdd4 {[%emt 0:00:00]} 30. Bd5 {[%emt 0:04:33]} Bxf5 {[%emt 0:00:00]} 31. Rde2 {[%emt 0:00:22]} Rd3 {[%emt 0:00:00]} 32. Re7 {[%emt 0:01:44]} Bg6 {[%emt 0:00:00]} 33. Rd7 {[%emt 0:04:35]} Rxb3 {[%emt 0:00:00]} 34. Ree7 {[%emt 0:06:58]} Kg5 {[%emt 0:00:43]} 35. Bxf7 {[%emt 0:00:54]} Bxf7 {[%emt 0:02:25]} 36. Rxf7 {[%emt 0:00:01]} Rxf7 {[%emt 0:00:10]} 37. Rxf7 {[%emt 0:00:03]} g6 {[%emt 0:00:22]} 38. Kg1 {[%emt 0:01:27]} Rb4 {[%emt 0:00:24]} 39. Rb7 {[%emt 0:00:03]} Kf4 {[%emt 0:00:59]} 40. Rf7+ {[%emt 0:00:49]} Ke5 {[%emt 0:00:15]} 41. Rg7 {[%emt 0:00:33]} Kf6 {[%emt 0:00:14]} 42. Rb7 {[%emt 0:00:02]} Rb2 {[%emt 0:00:39]} 43. Rh7 {[%emt 0:00:31]} g5 {[%emt 0:00:22]} 44. Rh8 {[%emt 0:00:05]} Ke5 {[%emt 0:02:31]} 45. Rg8 {[%emt 0:00:16]} Kf4 {[%emt 0:00:40]} 46. Rf8+ {[%emt 0:00:06]} Ke4 {[%emt 0:00:09]} 47. Rg8 {[%emt 0:00:04]} Kf5 {[%emt 0:00:48]} 48. Rf8+ {[%emt 0:00:09]} Ke6 {[%emt 0:00:21]} 49. Rg8 {[%emt 0:02:46]} Kf6 {[%emt 0:00:13]} 50. Rh8 {[%emt 0:00:17]} Rb4 {[%emt 0:00:42]} 51. Rf8+ {[%emt 0:00:20]} Kg7 {[%emt 0:00:35]} 52. Rb8 {[%emt 0:02:44]} Rxa4 {[%emt 0:01:04]} 53. Rxb6 {[%emt 0:00:00]} Rxc4 {[%emt 0:00:20]} 54. Ra6 {[%emt 0:00:00]} a4 {[%emt 0:00:37]} 55. Kf2 {[%emt 0:00:00]} Rb4 {[%emt 0:00:59]} 56. Kf3 {[%emt 0:00:00]} Rb3+ {[%emt 0:01:52]} 57. Ke4 {[%emt 0:00:00]} a3 {[%emt 0:00:26]} 58. Kf5 {[%emt 0:00:43]} c4 {[%emt 0:03:11]} 59. Ra7+ {[%emt 0:00:29]} Kf8 {[%emt 0:00:17]} 60. Kxg5 {[%emt 0:00:49]} c3 {[%emt 0:00:27]} 61. Kf6 {[%emt 0:01:04]} Rb6+ {[%emt 0:00:13]} 62. Kf5 {[%emt 0:00:24]} c2 {[%emt 0:00:13]} 63. Ra8+ {[%emt 0:00:18]} Ke7 {[%emt 0:00:33]} 64. Ra7+ {[%emt 0:00:28]} Kd6 {[%emt 0:00:21]} 65. Rxa3 {[%emt 0:01:01]} c1=Q {[%emt 0:00:08]} 66. Rd3+ {[%emt 0:00:04]} Ke7 {[%emt 0:00:20]} 67. Rf3 {[%emt 0:00:33]} Rf6+ {[%emt 0:00:24]} 68. Kg4 {[%emt 0:00:09]} Qc4+ {[%emt 0:00:34]} 69. Kg5 {[%emt 0:00:15]} Qd4 {[%emt 0:00:41]} 70. Kh5 {[%emt 0:00:51]} Rxf3 {[%emt 0:00:16]} 71. g4 {[%emt 0:00:04]} Rxh3 {[%emt 0:01:44]} 72. g5 {[%emt 0:00:02]} Kf7 {[%emt 0:00:34]} 73. g6+ {[%emt 0:00:12]} Kg7 {[%emt 0:00:13]} 74. Kg5 {[%emt 0:00:04]} Qe5+ {[%emt 0:00:34]} 75. Kg4 {[%emt 0:00:04]} Rg3+ {[%emt 0:00:16]} 76. Kxh4 {[%emt 0:00:27]} Qg5# {[%emt 0:00:08]} 0-1

[Event "1000GM BonaFIDE January 2024"]
[Site "Sunnyvale"]
[Date "2024.01.21"]
[Round "3.2"]
[White "Bheemaiah, Ayush"]
[Black "Xiao, Michael"]
[Result "1/2-1/2"]
[ECO "C10"]
[WhiteElo "1639"]
[BlackElo "1553"]
[Annotator "NA RC COMBH"]
[PlyCount "59"]
[EventDate "2024.01.20"]
[EventType "swiss"]
[EventCountry "USA"]
[SourceTitle "playchess.com"]
[Source "ChessBase"]
[SourceQuality "1"]
[TimeControl "5400+30"]

1. e4 {[%emt 0:00:03]} e6 {[%emt 0:10:22]} 2. d4 {[%emt 0:00:16]} d5 {[%emt 0:00:04]} 3. Nd2 {[%emt 0:00:05]} dxe4 {[%emt 0:00:05]} 4. Nxe4 {[%emt 0:00:04]} Nd7 {[%emt 0:00:05]} 5. Nf3 {[%emt 0:03:00]} Ngf6 {[%emt 0:00:19]} 6. Bd3 {[%emt 0:00:30]} Be7 {[%emt 0:00:27]} 7. O-O {[%emt 0:00:44]} O-O {[%emt 0:00:35]} 8. b3 {[%emt 0:04:53]} b6 {[%emt 0:01:11]} 9. Bb2 {[%emt 0:00:37]} Bb7 {[%emt 0:00:28]} 10. Re1 {[%emt 0:02:42]} Rc8 {[%emt 0:10:22]} 11. c4 {[%emt 0:03:53]} c5 {[%emt 0:04:34]} 12. Bc2 {[%emt 0:00:54]} cxd4 {[%emt 0:02:34]} 13. Nxd4 {[%emt 0:00:47]} Nxe4 {[%emt 0:05:57]} 14. Bxe4 {[%emt 0:00:05]} Bxe4 {[%emt 0:01:59]} 15. Rxe4 {[%emt 0:00:04]} Nc5 {[%emt 0:05:36]} 16. Re1 {[%emt 0:14:48]} Bf6 {[%emt 0:01:50]} 17. Re2 {[%emt 0:32:40]} a6 {[%emt 0:05:23]} 18. Nf3 {[%emt 0:03:06]} Bxb2 {[%emt 0:02:30]} 19. Rxb2 {[%emt 0:30:49]} Qf6 {[%emt 0:00:27]} 20. Qd4 {[%emt 0:00:00]} Qxd4 {[%emt 0:01:41]} 21. Nxd4 {[%emt 0:00:00]} Rfd8 {[%emt 0:00:09]} 22. Rd2 {[%emt 0:00:00]} Rc7 {[%emt 0:05:06]} 23. Nf3 {[%emt 0:00:00]} Rxd2 {[%emt 0:00:18]} 24. Nxd2 {[%emt 0:00:00]} Rd7 {[%emt 0:00:01]} 25. Nf3 {[%emt 0:00:00]} f6 {[%emt 0:00:10]} 26. Kf1 {[%emt 0:00:00]} g5 {[%emt 0:05:48]} 27. Ke2 {[%emt 0:00:00]} Ne4 {[%emt 0:06:27]} 28. Rc1 {[%emt 0:00:00]} g4 {[%emt 0:03:35]} 29. Ne1 {[%emt 0:05:00]} Kf7 {[%emt 0:07:25]} 30. f3 {[%emt 0:00:00]} 1/2-1/2

[Event "1000GM BonaFIDE January 2024"]
[Site "Sunnyvale"]
[Date "2024.01.21"]
[Round "3.3"]
[White "Vale Cruz, Armin"]
[Black "Rai, Achintya"]
[Result "0-1"]
[ECO "B92"]
[WhiteElo "1598"]
[BlackElo "1496"]
[Annotator "NA RC COMBH"]
[PlyCount "126"]
[EventDate "2024.01.20"]
[EventType "swiss"]
[EventCountry "USA"]
[SourceTitle "playchess.com"]
[Source "ChessBase"]
[SourceQuality "1"]
[TimeControl "5400+30"]

1. e4 {[%emt 0:00:08]} c5 {[%emt 0:00:04]} 2. Nf3 {[%emt 0:00:05]} d6 {[%emt 0:00:04]} 3. d4 {[%emt 0:00:04]} cxd4 {[%emt 0:00:06]} 4. Nxd4 {[%emt 0:00:05]} Nf6 {[%emt 0:00:11]} 5. Nc3 {[%emt 0:00:10]} a6 {[%emt 0:00:05]} 6. Be2 {[%emt 0:00:08]} e5 {[%emt 0:00:05]} 7. Nb3 {[%emt 0:00:13]} Be7 {[%emt 0:00:12]} 8. Qd3 {[%emt 0:03:58]} Be6 {[%emt 0:01:20]} 9. Qg3 {[%emt 0:08:43]} Nbd7 {[%emt 0:01:50]} 10. Be3 {[%emt 0:01:23]} O-O {[%emt 0:01:02]} 11. h4 {[%emt 0:03:51]} b5 {[%emt 0:04:06]} 12. h5 {[%emt 0:07:44]} b4 {[%emt 0:06:38]} 13. Bh6 {[%emt 0:00:38]} Ne8 {[%emt 0:00:14]} 14. Nd1 {[%emt 0:07:37]} Kh8 {[%emt 0:01:55]} 15. Bd2 {[%emt 0:01:09]} a5 {[%emt 0:00:25]} 16. h6 {[%emt 0:03:06]} g6 {[%emt 0:00:35]} 17. Nc1 {[%emt 0:00:41]} Nc5 {[%emt 0:01:39]} 18. f3 {[%emt 0:04:31]} f5 {[%emt 0:01:45]} 19. Nd3 {[%emt 0:01:07]} f4 {[%emt 0:00:58]} 20. Qh2 {[%emt 0:02:51]} Rc8 {[%emt 0:03:10]} 21. b3 {[%emt 0:02:43]} Nf6 {[%emt 0:00:33]} 22. g4 {[%emt 0:01:58]} fxg3 {[%emt 0:07:35]} 23. Qxg3 {[%emt 0:00:08]} Rf7 {[%emt 0:01:16]} 24. N1b2 {[%emt 0:02:16]} Nh5 {[%emt 0:01:55]} 25. Rxh5 {[%emt 0:09:01]} gxh5 {[%emt 0:00:06]} 26. O-O-O {[%emt 0:00:15]} Qg8 {[%emt 0:00:47]} 27. Qh2 {[%emt 0:00:48]} Bg5 {[%emt 0:03:52]} 28. Rg1 {[%emt 0:01:07]} Bxd2+ {[%emt 0:00:16]} 29. Kxd2 {[%emt 0:00:11]} Qf8 {[%emt 0:00:16]} 30. Qxh5 {[%emt 0:00:47]} Nxd3 {[%emt 0:00:30]} 31. Nxd3 {[%emt 0:00:49]} Rfc7 {[%emt 0:00:37]} 32. Bd1 {[%emt 0:00:44]} Qf7 {[%emt 0:00:58]} 33. Qh2 {[%emt 0:01:22]} Rg8 {[%emt 0:00:36]} 34. Nxe5 {[%emt 0:01:53]} Qf6 {[%emt 0:01:32]} 35. Rxg8+ {[%emt 0:02:23]} Bxg8 {[%emt 0:01:13]} 36. Ng4 {[%emt 0:05:46]} Qd4+ {[%emt 0:02:59]} 37. Kc1 {[%emt 0:04:21]} a4 {[%emt 0:03:28]} 38. Qh4 {[%emt 0:03:24]} axb3 {[%emt 0:02:03]} 39. axb3 {[%emt 0:00:15]} Rc8 {[%emt 0:02:38]} 40. e5 {[%emt 0:04:20]} Qf4+ {[%emt 0:01:28]} 41. Kb2 {[%emt 0:01:43]} dxe5 {[%emt 0:04:55]} 42. Qe7 {[%emt 0:00:55]} Qd4+ {[%emt 0:05:06]} 43. Kc1 {[%emt 0:00:28]} e4 {[%emt 0:00:36]} 44. fxe4 {[%emt 0:03:42]} Rd8 {[%emt 0:04:32]} 45. Qf6+ {[%emt 0:03:01]} Qxf6 {[%emt 0:00:02]} 46. Nxf6 {[%emt 0:00:07]} Rd6 {[%emt 0:00:07]} 47. e5 {[%emt 0:03:40]} Rc6 {[%emt 0:00:33]} 48. Bf3 {[%emt 0:00:52]} Rc5 {[%emt 0:00:37]} 49. Nd7 {[%emt 0:01:31]} Rc7 {[%emt 0:00:33]} 50. Bg4 {[%emt 0:01:17]} Bxb3 {[%emt 0:01:58]} 51. Kb2 {[%emt 0:01:04]} Ba4 {[%emt 0:01:43]} 52. Bf5 {[%emt 0:00:33]} Bxd7 {[%emt 0:00:13]} 53. e6 {[%emt 0:00:44]} Ba4 {[%emt 0:00:02]} 54. Be4 {[%emt 0:02:58]} Bb5 {[%emt 0:00:55]} 55. Bd5 {[%emt 0:00:22]} Bc4 {[%emt 0:00:45]} 56. e7 {[%emt 0:00:09]} Bb5 {[%emt 0:00:02]} 57. Kb3 {[%emt 0:00:27]} Rxe7 {[%emt 0:00:57]} 58. Kxb4 {[%emt 0:00:05]} Be8 {[%emt 0:00:38]} 59. c4 {[%emt 0:00:09]} Bf7 {[%emt 0:00:09]} 60. Kc5 {[%emt 0:01:01]} Bxd5 {[%emt 0:00:35]} 61. cxd5 {[%emt 0:00:08]} Kg8 {[%emt 0:01:21]} 62. d6 {[%emt 0:00:06]} Re1 {[%emt 0:00:07]} 63. d7 {[%emt 0:00:25]} Rd1 {[%emt 0:00:14]} 0-1